bitfinex/quotes_ETHUSD_20230405
["timestamp","ask_amount","ask_price","bid_price","bid_amount"]
[1680733401143,2.86428255,1906.8,1906.4,0.006]
[1680733401344,2.63428255,1906.8,1906.4,0.4066]
[1680733401613,3.378,1907.0,1906.4,0.4066]
[1680733401778,2.63428255,1906.9,1906.4,0.4066]
[1680733402739,2.63428255,1906.9,1906.5,0.39686872]
[1680733402945,2.63428255,1906.9,1906.5,0.40286872]
[1680733414481,2.63428255,1906.9,1906.5,0.52951559]
[1680733416266,2.63428255,1906.9,1906.5,0.40286872]
[1680733416675,2.58428255,1906.9,1906.5,0.39686872]
[1680733419869,2.58428255,1906.9,1906.5,0.86086872]
[1680733421800,16.02106809,1907.0,1906.6,0.464]
[1680733422003,15.9976,1907.0,1906.6,0.464]
[1680733422189,0.002,1907.1,1906.6,0.55008687]
[1680733422398,2.63428255,1907.1,1906.6,0.55008687]
[1680733423404,15.0643,1907.2,1906.8,0.462]
[1680733423603,17.69058255,1907.2,1906.8,0.462]
[1680733426411,17.69058255,1907.2,1906.7,0.463]
[1680733426715,17.69058255,1907.2,1906.9,0.39530441]
[1680733442351,17.87409255,1907.2,1906.9,0.39530441]
[1680733443439,17.69058255,1907.2,1906.9,0.39530441]
[1680733445777,15.07776809,1907.2,1906.9,0.39530441]
[1680733446070,0.008,1907.3,1906.9,0.39530441]
[1680733446243,4.9692,1907.3,1906.9,0.48103485]
[1680733446695,4.9692,1907.3,1906.9,0.94503485]
[1680733447705,0.008,1907.4,1907.1,0.463]
[1680733447860,5.1714,1907.6,1907.2,0.464]
[1680733448194,7.81168255,1907.6,1907.2,0.464]
[1680733448389,7.81168255,1907.6,1907.2,0.5567]
[1680733449171,7.80568255,1907.6,1907.2,0.5567]
[1680733449505,0.008,1907.7,1907.5,0.463]
[1680733449794,5.1714,1908.0,1907.6,0.462]
[1680733449980,8.36081371,1908.0,1907.6,0.462]
[1680733450181,8.35481371,1908.0,1907.5,0.463]
[1680733450562,8.36081371,1908.0,1907.5,0.463]
[1680733451091,5.1774,1908.0,1907.5,0.463]
[1680733452664,5.1774,1908.0,1907.6,0.3857327]
[1680733452865,5.1774,1908.0,1907.6,0.47060597]
[1680733459574,0.464,1907.8,1907.6,0.3857327]
[1680733459906,2.86428255,1907.7,1907.6,0.3857327]
[1680733463807,10.2415,1907.8,1907.6,0.3857327]
[1680733464127,10.2395,1907.8,1907.6,0.3857327]
[1680733464541,0.006,1907.8,1907.6,0.3857327]
[1680733464700,0.02146809,1907.9,1907.6,0.3857327]
[1680733465642,0.25146809,1907.9,1907.6,0.3857327]
[1680733466513,2.88575064,1907.9,1907.6,0.3857327]
[1680733466711,2.89175064,1907.9,1907.6,0.3857327]
[1680733467805,2.63428255,1907.8,1907.6,0.3857327]
[1680733468743,0.23,1907.7,1907.1,0.009]
[1680733468922,2.63428255,1907.6,1907.0,4.9075]
[1680733469246,5.78028255,1907.6,1907.0,0.006]
[1680733469450,5.78028255,1907.6,1906.8,4.5538]
[1680733469451,0.23,1907.5,1906.8,4.5538]
[1680733469651,2.86428255,1907.5,1907.1,0.3412246]
[1680733470761,2.86428255,1907.5,1906.9,0.45538]
[1680733472955,2.86428255,1907.5,1907.0,0.34239293]
[1680733473121,3.04777255,1907.5,1907.0,0.34239293]
[1680733474223,3.41474255,1907.5,1907.0,0.34239293]
[1680733474430,3.41474255,1907.5,1907.0,0.42217022]
[1680733474772,2.86428255,1907.5,1907.0,0.42217022]
[1680733489023,2.86428255,1907.5,1907.0,0.97117022]
[1680733495019,2.86428255,1907.5,1907.0,0.42217022]
[1680733507827,0.23,1907.5,1907.0,0.97117022]
[1680733507995,0.25146809,1907.6,1907.1,0.09711702]
[1680733508207,2.88575064,1907.6,1907.1,0.09711702]
[1680733510745,16.1298,1907.7,1907.3,0.549]
[1680733511687,16.1298,1907.7,1907.4,0.29583048]
[1680733511931,0.008,1907.8,1907.4,0.92931353]
[1680733512192,14.9686,1908.0,1907.5,0.549]
[1680733512432,15.52373116,1908.0,1907.5,0.549]
[1680733513106,15.52373116,1908.0,1907.4,0.63348305]
[1680733516251,14.9746,1908.0,1907.4,0.63348305]
[1680733516574,15.52373116,1908.0,1907.5,0.06334831]
[1680733516979,14.9746,1908.0,1907.5,0.06334831]
[1680733517155,2.63428255,1907.9,1907.4,0.08448305]
[1680733517355,0.23,1907.8,1907.3,0.549]
[1680733517674,2.86428255,1907.8,1907.2,0.549]
[1680733521277,2.86428255,1907.8,1907.2,3.549]
[1680733527871,2.86428255,1907.8,1907.2,3.464]
[1680733528054,2.86428255,1907.8,1907.3,0.3464]
[1680733529678,2.86428255,1907.8,1907.4,0.29681798]
[1680733545894,0.02746809,1907.9,1907.4,0.29681798]
[1680733546110,0.02146809,1907.9,1907.4,0.29681798]
[1680733555307,0.57059925,1907.9,1907.4,0.29681798]
[1680733555472,0.93117308,1907.9,1907.4,0.37299978]
[1680733555670,0.02146809,1907.9,1907.4,0.37299978]
[1680733555876,0.93117167,1907.9,1907.4,0.37299978]
[1680733556119,0.02146809,1907.9,1907.4,0.37299978]
[1680733556485,0.93117251,1907.9,1907.4,0.37299978]
[1680733556677,0.02146809,1907.9,1907.4,0.37299978]
[1680733557209,1.48030417,1907.9,1907.4,0.37299978]
[1680733557513,0.57059925,1907.9,1907.4,0.37299978]
[1680733558012,0.02146809,1907.9,1907.4,0.37299978]
[1680733558612,1.48030378,1907.9,1907.4,0.37299978]
[1680733558787,0.02146809,1907.9,1907.4,0.37299978]
[1680733559380,0.93117173,1907.9,1907.4,0.37299978]
[1680733559580,0.02146809,1907.9,1907.4,0.37299978]
[1680733560205,1.48030425,1907.9,1907.4,0.37299978]
[1680733560407,0.57059925,1907.9,1907.4,0.37299978]
[1680733561409,2.20748885,1907.9,1907.4,0.29681798]
[1680733563615,4.8417714,1907.9,1907.4,0.29681798]
[1680733563820,0.23,1907.8,1907.4,0.29681798]
[1680733564792,0.23,1907.8,1907.4,0.42241852]
[1680733565704,0.23,1907.8,1907.4,0.12560054]
[1680733565897,0.78387714,1907.8,1907.2,3.0]
[1680733566821,0.78387714,1907.8,1907.3,0.42436604]
[1680733567489,2.63428255,1907.7,1907.3,0.42436604]
[1680733567892,7.55598255,1907.7,1907.3,0.42436604]
[1680733576422,8.02298255,1907.7,1907.3,0.42436604]
[1680733576722,0.80229826,1907.6,1907.3,0.42436604]
[1680733582935,17.72385064,1907.7,1907.3,0.42436604]
[1680733607439,17.90731064,1907.7,1907.3,0.42436604]
[1680733607612,17.72385064,1907.7,1907.3,0.42436604]
[1680733609532,17.90732064,1907.7,1907.3,0.42436604]
[1680733614330,17.72385064,1907.7,1907.3,0.42436604]
[1680733615265,19.64808253,1907.7,1907.3,0.42436604]
[1680733616133,17.72385064,1907.7,1907.3,0.42436604]
[1680733620351,15.0681,1907.7,1907.3,0.88536604]
[1680733620670,0.004,1907.7,1907.4,0.463]
[1680733620968,0.004,1907.8,1907.4,0.463]
[1680733620969,0.23,1907.8,1907.4,0.463]
[1680733624541,0.23,1907.9,1907.4,0.463]
[1680733624869,2.86428255,1907.9,1907.4,0.463]
[1680733625271,0.006,1907.9,1907.4,0.97145]
[1680733625477,15.47673116,1908.0,1907.5,0.465]
[1680733625771,18.11101371,1908.0,1907.5,0.86046861]
[1680733625972,7.95781371,1908.0,1907.5,0.86046861]
[1680733626144,7.95781371,1908.0,1907.5,0.39546861]
[1680733626344,7.95781371,1908.0,1907.5,0.53236047]
[1680733630578,8.14125371,1908.0,1907.5,0.53236047]
[1680733631982,0.90971568,1907.9,1907.5,0.53236047]
[1680733632142,1.09316568,1907.9,1907.5,0.53236047]
[1680733632345,0.18345,1907.9,1907.5,0.53236047]
[1680733632763,2.00920431,1907.9,1907.5,0.53236047]
[1680733632986,1.10547116,1907.9,1907.5,0.53236047]
[1680733633157,1.09947116,1907.9,1907.5,0.53236047]
[1680733634673,0.54913116,1907.9,1907.5,0.53236047]
[1680733634887,1.45888434,1907.9,1907.5,0.53236047]
[1680733635273,7.95981371,1908.0,1907.5,0.53236047]
[1680733635585,0.90974223,1907.9,1907.5,0.39546861]
[1680733636348,9.92971157,1908.0,1907.5,0.39546861]
[1680733636989,0.90974204,1907.9,1907.5,0.39546861]
[1680733637190,9.92971157,1908.0,1907.5,0.39546861]
[1680733637378,0.90974283,1907.9,1907.5,0.39546861]
[1680733637580,0.90974283,1907.9,1907.5,0.53236047]
[1680733637754,2.63428255,1907.9,1907.5,0.39546861]
[1680733637960,2.86428255,1907.8,1907.5,0.39546861]
[1680733641563,2.88575064,1907.8,1907.5,0.39546861]
[1680733656627,2.86428255,1907.8,1907.5,0.39546861]
[1680733660334,0.006,1907.9,1907.5,0.85846861]
[1680733660562,4.7744,1908.0,1907.6,0.08584686]
[1680733660829,7.40868255,1908.0,1907.6,0.08584686]
[1680733662902,4.7744,1908.0,1907.6,0.08584686]
[1680733663135,0.006,1908.0,1907.6,0.08584686]
[1680733663336,10.92,1908.1,1907.6,0.08584686]
[1680733663505,13.55428255,1908.1,1907.6,0.08584686]
[1680733663705,18.31178255,1908.1,1907.7,0.37448885]
[1680733664759,18.31178255,1908.1,1907.6,0.08584686]
[1680733666969,18.31178255,1908.1,1907.7,0.465]
[1680733667270,2.64028255,1908.1,1907.7,0.52008469]
[1680733667473,2.63428255,1908.1,1907.7,0.52008469]
[1680733667837,2.63428255,1908.1,1907.8,0.37222006]
[1680733668737,2.63428255,1908.1,1907.6,0.464]
[1680733669762,2.63428255,1908.1,1907.7,0.3719632]
[1680733669960,2.63428255,1908.1,1907.7,0.45555952]
[1680733672851,0.006,1908.2,1907.7,0.45555952]
[1680733673057,2.86428255,1908.2,1907.7,0.45555952]
[1680733673257,2.87028255,1908.2,1907.7,0.45555952]
[1680733676493,0.006,1908.2,1907.7,0.45555952]
[1680733676690,15.36726809,1908.3,1907.7,0.45555952]
[1680733676895,18.00155064,1908.3,1907.7,0.45555952]
[1680733681285,19.93309731,1908.3,1907.7,0.45555952]
[1680733683702,18.00155064,1908.3,1907.7,0.45555952]
[1680733690099,2.63428255,1908.2,1907.7,0.45555952]
[1680733690321,2.64028255,1908.2,1907.7,0.3719632]
[1680733690524,0.23,1908.1,1907.7,0.3719632]
[1680733690839,2.86428255,1908.1,1907.4,13.0903]
[1680733691012,7.94608255,1908.1,1907.4,13.0903]
[1680733691213,7.95208255,1908.1,1907.4,13.0903]
[1680733691437,8.81233181,1908.1,1907.5,1.30903]
[1680733691801,8.81233181,1908.1,1907.5,1.65931404]
[1680733695142,8.81233181,1908.1,1907.5,0.35028404]
[1680733695966,2.65575064,1908.0,1907.5,0.35028404]
[1680733696126,0.23,1907.9,1907.5,0.35028404]
[1680733696448,2.86428255,1907.9,1907.5,0.35028404]
[1680733696857,7.94718255,1907.9,1907.5,0.35028404]
[1680733697049,9.83665761,1907.9,1907.5,0.35028404]
[1680733707285,2.63428255,1907.8,1907.5,0.35028404]
[1680733707502,0.23,1907.7,1907.5,0.35028404]
[1680733707669,2.63428255,1907.6,1907.5,0.35028404]
[1680733707986,2.86428255,1907.6,1907.5,0.35028404]
[1680733708166,4.7512408,1907.6,1907.5,0.35028404]
[1680733709297,8.0807108,1907.6,1907.5,0.35028404]
[1680733709452,11.9186608,1907.6,1907.5,0.35028404]
[1680733709652,11.3622408,1907.6,1907.5,0.35028404]
[1680733709883,10.9032408,1907.6,1906.9,0.465]
[1680733710079,0.23,1907.5,1906.9,0.465]
[1680733710316,2.86428255,1907.5,1906.9,0.465]
[1680733710630,2.87028255,1907.5,1906.9,0.465]
[1680733711029,2.86828255,1907.5,1907.0,0.30807194]
[1680733711185,2.89175064,1907.5,1907.0,0.30807194]
[1680733713208,2.88575064,1907.5,1907.0,0.30807194]
[1680733713397,3.8080727,1907.5,1907.0,0.30807194]
[1680733713608,3.8140727,1907.5,1907.0,0.30807194]
[1680733714332,3.9975527,1907.5,1907.0,0.30807194]
[1680733714634,3.8140727,1907.5,1907.0,0.30807194]
[1680733715140,2.63428255,1907.4,1907.0,0.30807194]
[1680733715437,0.26342826,1907.3,1907.0,0.30807194]
[1680733715637,17.83757255,1907.4,1907.0,0.30807194]
[1680733715795,17.84357255,1907.4,1907.0,0.30807194]
[1680733715995,17.66008255,1907.4,1907.0,0.30807194]
[1680733717193,17.65408255,1907.4,1907.0,0.30807194]
[1680733717467,17.66008255,1907.4,1907.0,0.30807194]
[1680733717654,19.55987201,1907.4,1907.0,0.30807194]
[1680733718865,0.02146809,1907.3,1907.0,0.30807194]
[1680733726746,5.0752,1907.4,1907.0,0.30807194]
[1680733728308,5.0692,1907.4,1907.0,0.30807194]
[1680733728456,5.0752,1907.4,1907.0,0.30807194]
[1680733729320,0.006,1907.4,1907.0,0.30807194]
[1680733729519,10.173,1907.5,1907.0,0.30807194]
[1680733729803,14.45772955,1907.5,1907.0,0.30807194]
[1680733730005,19.55432955,1907.5,1907.0,0.30807194]
[1680733730362,19.57579764,1907.5,1907.0,0.30807194]
[1680733740449,19.75927764,1907.5,1907.0,0.30807194]
[1680733742545,19.57579764,1907.5,1907.0,0.30807194]
[1680733743921,19.75927764,1907.5,1907.0,0.30807194]
[1680733744152,1.97592776,1907.4,1907.0,0.30807194]
[1680733744420,4.61021031,1907.4,1907.0,0.30807194]
[1680733744644,4.61621031,1907.4,1907.0,0.30807194]
[1680733755141,4.61621031,1907.4,1907.0,0.30807194]
[1680733756661,3.35075064,1907.3,1907.0,0.30807194]
[1680733756844,8.10315064,1907.3,1907.0,0.30807194]
[1680733757040,0.81031506,1907.2,1907.0,0.30807194]
[1680733757870,0.81031506,1907.2,1906.6,4.6866]
[1680733758160,8.10315064,1907.3,1906.6,4.6836]
[1680733758950,8.10315064,1907.3,1906.7,0.24967751]
[1680733759153,8.28665064,1907.3,1906.7,0.24967751]
[1680733762866,8.65366064,1907.3,1906.7,0.24967751]
[1680733763384,8.28665064,1907.3,1906.7,0.24967751]
[1680733763552,9.62830848,1907.3,1906.7,0.24967751]
[1680733764051,12.77430848,1907.3,1906.7,0.24967751]
[1680733764683,10.76268255,1907.3,1906.7,0.24967751]
[1680733764870,10.76268255,1907.3,1906.7,0.71367751]
[1680733771174,10.76268255,1907.3,1906.7,0.24967751]
[1680733773702,10.94618255,1907.3,1906.7,0.24967751]
[1680733776860,11.31319255,1907.3,1906.7,0.24967751]
[1680733777070,0.18353,1907.0,1906.7,0.24967751]
[1680733777275,0.463,1906.9,1906.7,0.24967751]
[1680733777497,18.27318255,1907.0,1906.7,0.24967751]
[1680733777685,0.02146809,1906.9,1906.7,0.24967751]
[1680733777896,0.02146809,1906.9,1906.1,0.468]
[1680733778085,1.85493315,1906.9,1906.2,4.7253]
[1680733778278,1.85693315,1906.9,1906.2,4.7253]
[1680733778878,1.85693315,1906.9,1906.3,0.21664266]
[1680733780271,0.02746809,1906.9,1906.3,0.21664266]
[1680733780476,0.006,1906.9,1906.4,0.462]
[1680733781978,0.006,1906.9,1906.5,0.21467909]
[1680733783270,0.006,1906.9,1906.5,0.67767909]
[1680733783473,0.002,1906.9,1906.5,0.67767909]
[1680733783678,0.006,1907.0,1906.7,0.461]
[1680733783898,0.006,1907.0,1906.7,0.465]
[1680733784402,0.006,1907.0,1906.6,0.53176791]
[1680733788815,0.006,1907.0,1906.6,0.06776791]
[1680733789017,0.006,1907.0,1906.5,0.463]
[1680733789976,0.18953,1907.0,1906.5,0.463]
[1680733790781,0.006,1907.0,1906.5,0.463]
[1680733792081,0.18953,1907.0,1906.5,0.463]
[1680733792315,0.02146809,1906.9,1906.5,0.463]
[1680733792516,0.02746809,1906.9,1906.4,0.464]
[1680733793780,0.02746809,1906.9,1906.5,0.20893316]
[1680733797374,0.02746809,1906.9,1906.5,0.27622648]
[1680733797579,0.02746809,1906.9,1906.6,0.465]
[1680733801310,0.02746809,1906.9,1906.5,0.464]
[1680733805980,0.006,1906.9,1906.8,0.463]
[1680733807514,0.006,1907.0,1906.8,0.463]
[1680733808519,0.006,1907.0,1906.7,0.461]
[1680733815027,0.006,1907.0,1906.6,0.463]
[1680733815198,0.006,1907.0,1906.6,0.5557]
[1680733815789,0.006,1907.0,1906.7,0.01049]
[1680733820202,3.10528255,1907.0,1906.7,0.01049]
[1680733820404,13.82978255,1907.0,1906.7,0.01049]
[1680733820594,10.5005,1907.0,1906.7,0.01049]
[1680733820799,1.05005,1906.9,1906.7,0.01049]
[1680733821029,1.05605,1906.9,1906.7,0.01049]
[1680733821333,0.006,1906.9,1906.7,0.01049]
[1680733822097,0.006,1907.0,1906.7,0.01049]
[1680733823299,0.006,1907.0,1906.8,0.2121263]
[1680733823510,0.006,1907.0,1906.9,0.010488]
[1680733826196,0.004,1907.0,1906.9,0.22222328]
[1680733826396,0.006,1907.0,1906.9,0.22222328]
[1680733833941,0.51915,1907.0,1906.9,0.22222328]
[1680733853861,0.006,1907.0,1906.9,0.22222328]
[1680733857661,0.18953,1907.0,1906.9,0.22222328]
[1680733857867,0.006,1907.0,1906.9,0.22222328]
[1680733860251,0.006,1907.0,1906.9,0.010488]
[1680733862737,3.33528255,1907.0,1906.9,0.010488]
[1680733862939,4.18350761,1907.0,1906.9,0.010488]
[1680733863262,0.85422506,1907.0,1906.9,0.010488]
[1680733865214,0.85422506,1907.0,1906.9,0.22150403]
[1680733880190,5.13334915,1907.1,1906.9,0.22150403]
[1680733880392,0.51333491,1907.0,1906.9,0.22150403]
[1680733891585,7.7676317,1907.1,1906.9,0.22150403]
[1680733900786,8.31676286,1907.1,1906.9,0.22150403]
[1680733901417,8.50028286,1907.1,1906.9,0.22150403]
[1680733907230,8.50028286,1907.1,1906.9,0.29132141]
[1680733908224,8.31676286,1907.1,1906.9,0.29132141]
[1680733908390,10.64596082,1907.1,1906.9,0.29132141]
[1680733908817,5.11188106,1907.1,1906.9,0.29132141]
[1680733913095,5.11788106,1907.1,1906.9,0.29132141]
[1680733913320,5.11188106,1907.1,1906.9,0.29132141]
[1680733921100,5.66244106,1907.1,1906.9,0.29132141]
[1680733921299,5.84453222,1907.1,1906.9,0.29132141]
[1680733921530,0.58445322,1907.0,1906.9,0.29132141]
[1680733921829,0.60592131,1907.0,1906.9,0.29132141]
[1680733932549,0.83592131,1907.0,1906.9,0.29132141]
[1680733940044,3.47020386,1907.0,1906.9,0.29132141]
[1680733952097,3.47020386,1907.0,1906.9,0.30181141]
[1680733968313,3.65373386,1907.0,1906.9,0.30181141]
[1680733971142,3.47020386,1907.0,1906.9,0.30181141]
[1680733971439,3.65373386,1907.0,1906.9,0.30181141]
[1680733973946,5.11299085,1907.0,1906.9,0.30181141]
[1680733974746,4.56385969,1907.0,1906.9,0.30181141]
[1680733979055,4.38032969,1907.0,1906.9,0.30181141]
[1680733979241,4.56385969,1907.0,1906.9,0.30181141]
[1680733979550,4.38032969,1907.0,1906.9,0.30181141]
[1680733981246,3.47020386,1907.0,1906.9,0.30181141]
[1680733981550,4.38034241,1907.0,1906.9,0.30181141]
[1680733983346,3.47020386,1907.0,1906.9,0.30181141]
[1680733986488,4.38034455,1907.0,1906.9,0.30181141]
[1680733987082,3.47020386,1907.0,1906.9,0.30181141]
[1680733988004,4.38034272,1907.0,1906.9,0.30181141]
[1680733988148,3.47020386,1907.0,1906.9,0.30181141]
[1680733989360,4.38034377,1907.0,1906.9,0.30181141]
[1680733989546,3.47020386,1907.0,1906.9,0.30181141]
[1680733990184,4.38034362,1907.0,1906.9,0.30181141]
[1680733990511,3.47020386,1907.0,1906.9,0.30181141]
[1680733992388,3.42020386,1907.0,1906.9,0.30181141]
[1680733993992,5.66301222,1907.1,1906.9,0.30181141]
[1680733994302,0.23,1907.0,1906.9,0.30181141]
[1680733995897,2.63428255,1907.1,1906.9,0.30181141]
[1680733998596,2.63428255,1907.1,1906.9,0.30181141]
[1680734002490,0.55113116,1907.2,1906.9,0.30181141]
[1680734002665,4.09347747,1907.2,1906.9,0.30181141]
[1680734002860,3.18341371,1907.2,1906.9,0.30181141]
[1680734003696,0.54913116,1907.2,1906.9,0.30181141]
[1680734003872,4.27698318,1907.2,1906.9,0.30181141]
[1680734004077,0.42769832,1907.1,1906.9,0.30181141]
[1680734004272,3.18341371,1907.2,1906.9,0.30181141]
[1680734004495,3.36693371,1907.2,1906.9,0.30181141]
[1680734004873,13.30123371,1907.2,1906.9,0.30181141]
[1680734005279,0.91010333,1907.1,1906.9,0.30181141]
[1680734005484,1.09363333,1907.1,1906.9,0.30181141]
[1680734005702,0.18353,1907.1,1906.9,0.30181141]
[1680734006176,0.20499809,1907.1,1906.9,0.30181141]
[1680734007370,1.65634195,1907.1,1906.9,0.30181141]
[1680734007570,1.47281195,1907.1,1906.9,0.30181141]
[1680734007797,2.02194311,1907.1,1906.9,0.30181141]
[1680734009109,2.20546311,1907.1,1906.9,0.30181141]
[1680734012610,2.02194311,1907.1,1906.9,0.30181141]
[1680734014409,2.20546311,1907.1,1906.9,0.30181141]
[1680734014808,1.65633195,1907.1,1906.9,0.30181141]
[1680734015277,2.20546311,1907.1,1906.9,0.30181141]
[1680734016109,0.02146809,1907.1,1906.9,0.30181141]
[1680734017612,4.07068859,1906.5,1906.3,9.1285]
[1680734017818,4.07068859,1906.5,1906.4,0.463]
[1680734018182,4.04455562,1906.5,1906.4,0.72432974]
[1680734019180,4.01864032,1906.5,1906.4,0.72432974]
[1680734019515,4.01864032,1906.5,1906.4,1.06079097]
[1680734020194,3.99294089,1906.5,1906.4,1.06079097]
[1680734021078,3.96745552,1906.5,1906.4,1.06079097]
[1680734021883,3.96745552,1906.5,1906.4,4.69507352]
[1680734022083,0.008,1906.7,1906.6,1.0]
[1680734022282,0.006,1907.2,1906.6,4.71228255]
[1680734022506,0.006,1907.2,1907.1,0.463]
[1680734023616,6.11733116,1907.5,1907.1,0.463]
[1680734024385,6.11733116,1907.5,1907.2,0.465]
[1680734025216,5.5682,1907.5,1907.3,0.24606976]
[1680734025980,5.5682,1907.5,1907.3,0.70806976]
[1680734026203,0.006,1907.5,1907.3,0.462]
[1680734026390,0.006,1907.6,1907.3,0.462]
[1680734026607,0.006,1907.6,1907.4,0.465]
[1680734026916,0.006,1907.6,1907.5,0.462]
[1680734027306,0.006,1907.6,1907.5,0.82538212]
[1680734029018,0.006,1907.6,1907.5,0.36338212]
[1680734030904,0.006,1907.6,1907.5,0.44622033]
[1680734031106,0.006,1907.9,1907.5,0.91022033]
[1680734031321,0.006,1907.9,1907.5,0.36338212]
[1680734032094,0.006,1907.9,1907.5,0.82638212]
[1680734032306,0.006,1907.9,1907.5,0.36338212]
[1680734033631,0.006,1907.9,1907.5,0.82438212]
[1680734033994,0.006,1907.9,1907.7,0.465]
[1680734034196,0.006,1908.0,1907.7,0.465]
[1680734039133,0.006,1908.0,1907.8,0.35808608]
[1680734042141,0.006,1908.0,1907.8,0.82008608]
[1680734042311,5.6815,1908.1,1907.8,0.82008608]
[1680734043048,5.6815,1908.1,1907.8,0.35808608]
[1680734047747,5.6815,1908.1,1907.8,0.44039469]
[1680734048514,5.6962229,1908.1,1907.8,0.44039469]
[1680734051255,5.6962229,1908.1,1907.8,0.90439469]
[1680734051957,5.6962229,1908.1,1907.8,0.44039469]
[1680734052456,5.6962229,1908.1,1907.8,0.35808608]
[1680734053158,5.6962229,1908.1,1907.4,4.003]
[1680734053357,5.6962229,1908.1,1907.4,4.0]
[1680734053563,16.6597229,1908.1,1907.4,4.0]
[1680734054365,16.6597229,1908.1,1907.5,0.36043022]
[1680734054524,18.374142,1908.1,1907.5,0.36043022]
[1680734055451,18.374142,1908.1,1907.5,0.82143022]
[1680734058558,18.374142,1908.1,1907.5,0.36043022]
[1680734058559,21.47342455,1908.1,1907.5,0.36043022]
[1680734058761,0.961,1907.9,1907.5,0.36043022]
[1680734058929,0.23,1907.8,1907.5,0.36043022]
[1680734059129,0.61912826,1907.8,1907.2,1.0]
[1680734059350,6.19022826,1907.8,1907.2,1.0]
[1680734059946,16.69512826,1907.8,1907.2,1.0]
[1680734060189,16.69512826,1907.8,1907.3,0.36199338]
[1680734066878,17.15612826,1907.8,1907.3,0.36199338]
[1680734067080,1.71561283,1907.7,1907.3,0.36199338]
[1680734067400,1.72161283,1907.7,1907.3,0.36199338]
[1680734071612,0.006,1907.7,1907.3,0.36199338]
[1680734071816,0.006,1907.7,1907.4,0.464]
[1680734072142,16.2984,1908.0,1907.4,5.0357]
[1680734072322,16.3044,1908.0,1907.4,5.0387]
[1680734074745,16.3044,1908.0,1907.5,0.465]
[1680734074955,16.3044,1908.0,1907.5,0.96897]
[1680734075450,16.3044,1908.0,1907.5,1.32940022]
[1680734079549,0.006,1908.0,1907.5,1.32940022]
[1680734079776,0.0207229,1908.1,1907.6,0.464]
[1680734080139,0.0207229,1908.1,1907.6,0.82364876]
[1680734080349,0.0207229,1908.1,1907.7,0.08236488]
[1680734083281,0.0207229,1908.1,1907.8,0.35808608]
[1680734088867,0.5207229,1908.1,1907.8,0.35808608]
[1680734089299,0.5207229,1908.1,1907.4,4.5747]
[1680734089578,0.5207229,1908.1,1907.4,7.20598255]
[1680734089906,2.24877031,1908.1,1907.4,7.97638081]
[1680734090303,2.24877031,1908.1,1907.5,0.36043022]
[1680734092909,2.24277031,1908.1,1907.5,0.36043022]
[1680734093116,2.24877031,1908.1,1907.5,0.36043022]
[1680734093696,1.74877031,1908.1,1907.5,0.36043022]
[1680734093897,1.74877031,1908.1,1907.5,1.19411132]
[1680734095528,1.74277031,1908.1,1907.5,1.19411132]
[1680734095908,1.74877031,1908.1,1907.5,1.19411132]
[1680734097814,0.0207229,1908.1,1907.5,1.19411132]
[1680734101468,0.0207229,1908.1,1907.6,0.463]
[1680734101642,0.0207229,1908.1,1907.6,2.63428255]
[1680734104946,0.4857229,1908.1,1907.5,0.8366811]
[1680734105147,0.4857229,1908.1,1907.5,0.8336811]
[1680734106059,1.33594031,1908.1,1907.5,0.8336811]
[1680734106260,1.3574084,1908.1,1907.6,0.28771901]
[1680734107157,1.1739884,1908.1,1907.6,0.28771901]
[1680734107350,1.3574084,1908.1,1907.6,0.28771901]
[1680734107925,1.1739884,1908.1,1907.6,0.28771901]
[1680734109455,0.11739884,1908.0,1907.6,0.28771901]
[1680734109635,0.0141821,1907.9,1907.6,0.28771901]
[1680734109835,0.0201821,1907.9,1907.6,0.28771901]
[1680734110851,0.0141821,1907.9,1907.6,0.28771901]
[1680734114374,0.93,1907.7,1907.6,0.28771901]
[1680734114665,5.5216008,1907.7,1907.6,0.28771901]
[1680734115184,4.6546708,1907.7,1906.8,14.2155]
[1680734115464,0.461,1907.5,1906.8,14.2155]
[1680734115632,0.467,1907.5,1906.8,14.2155]
[1680734116047,10.937,1907.5,1906.8,14.2155]
[1680734116249,10.937,1907.5,1906.9,1.42155]
[1680734120082,10.476,1907.5,1906.9,1.42155]
[1680734122255,10.476,1907.5,1906.8,0.003]
[1680734122256,2.63428255,1907.4,1906.8,0.003]
[1680734122451,2.63428255,1907.4,1906.6,30.016]
[1680734122452,0.465,1907.2,1906.6,0.003]
[1680734122786,6.58682,1907.3,1906.5,0.003]
[1680734122787,3.64984255,1907.1,1906.5,0.003]
[1680734122987,3.51880255,1907.1,1906.3,9.5702]
[1680734123572,16.3948,1907.0,1906.3,9.5702]
[1680734123876,18.55733825,1907.0,1906.3,10.57362]
[1680734124071,18.37380825,1907.0,1906.3,10.57362]
[1680734125484,18.55733825,1907.0,1906.3,10.57362]
[1680734126108,18.39527634,1907.0,1906.3,10.57362]
[1680734128975,16.42226809,1907.0,1906.3,11.03462]
[1680734129214,16.42226809,1907.0,1906.5,0.465]
[1680734130384,16.42226809,1907.0,1906.4,0.464]
[1680734130586,16.42226809,1907.0,1906.4,3.09828255]
[1680734133326,16.42226809,1907.0,1906.5,0.27957104]
[1680734133619,16.42226809,1907.0,1906.5,0.6173564]
[1680734152645,16.42226809,1907.0,1906.5,0.27957104]
[1680734153344,16.42226809,1907.0,1906.3,10.57362]
[1680734154139,16.42226809,1907.0,1906.4,0.25534306]
[1680734155562,19.05655064,1907.0,1906.4,0.25534306]
[1680734155867,19.51755064,1907.0,1906.4,0.25534306]
[1680734156185,1.95175506,1906.9,1906.2,13.138]
[1680734156347,1.95775506,1906.9,1906.2,13.141]
[1680734157190,1.95775506,1906.9,1906.3,0.25573428]
[1680734160354,0.006,1906.9,1906.3,0.25573428]
[1680734160550,19.05255064,1907.0,1906.3,0.25573428]
[1680734160551,16.42226809,1907.0,1906.4,0.464]
[1680734164306,16.42226809,1907.0,1906.5,0.33993584]
[1680734169189,19.05655064,1907.0,1906.5,0.33993584]
[1680734173126,16.42226809,1907.0,1906.5,0.33993584]
[1680734174220,18.1111949,1907.0,1906.5,0.33993584]
[1680734179226,18.1111949,1907.0,1906.2,13.14]
[1680734179428,19.05655064,1907.0,1906.2,3.466]
[1680734179662,0.461,1906.9,1906.2,3.0]
[1680734179967,0.18355,1906.8,1906.2,3.0]
[1680734180258,0.961,1906.9,1906.2,3.0]